fUSD/lending_fUSD_20240327
["ID","MTS","AMOUNT","RATE_DAILY","PERIOD"]
[320734587,1711539132021,-937.27,0.0005863,120]
[320734588,1711539132030,-1083.78,0.0005863,120]
[320734589,1711539132040,-3201.11,0.0005863,120]
[320734590,1711539132051,-2638.24,0.0005863,120]
[320734591,1711539132061,-1388.52,0.0005863,120]
[320734592,1711539132071,-4892.27,0.0005863,120]
[320734593,1711539132081,-2480.34,0.0005863,120]
[320734594,1711539132092,-1350.19,0.0005863,120]
[320734595,1711539132102,-3142.36,0.0005863,120]
[320734596,1711539132111,-2180.01,0.0005863,120]
[320734597,1711539132122,-1470.53,0.0005863,120]
[320734598,1711539132133,-500.0,0.0005863,120]
[320734599,1711539132143,-505.71,0.0005863,120]
[320734600,1711539132154,-1659.22,0.0005863,120]
[320734601,1711539132164,-8083.93,0.0005863,120]
[320734602,1711539132174,-449.98343463,0.0005863,120]
[320734603,1711539132184,-2931.63,0.0005863,120]
[320734604,1711539132193,-2901.36,0.0005863,120]
[320734605,1711539132204,-541.86,0.0005863,120]
[320734606,1711539132213,-4166.77,0.0005863,120]
[320734607,1711539132223,-3516.57,0.0005863,120]
[320734608,1711539132233,-10990.32,0.0005863,120]
[320734609,1711539132244,-1139.26,0.0005863,120]
[320734610,1711539132254,-686.73,0.0005863,120]
[320734611,1711539132263,-1716.32,0.0005863,120]
[320734612,1711539132274,-500.0,0.0005863,120]
[320734613,1711539132287,-2062.68,0.00058684,120]
[320734614,1711539132297,-166.56049652,0.00058685,120]
[320734615,1711539132307,-157.04179302,0.00058708,120]
[320734616,1711539132317,-157.032717,0.00058798,113]
[320734617,1711539132327,-152.38573111,0.00058804,78]
[320734618,1711539132337,-1107.90831877,0.00058849,120]
[320734619,1711539132347,-282.33678653,0.00058849,120]
[320734620,1711539132357,-303.12040052,0.00058849,120]
[320734621,1711539132368,-749.32,0.00058874,120]
[320734622,1711539132378,-800.0,0.00058898,120]
[320734623,1711539132387,-895.23,0.00058904,120]
[320734624,1711539132397,-575.28,0.00058904,120]
[320734625,1711539132408,-500.0,0.00058904,120]
[320734626,1711539132418,-500.0,0.00058904,120]
[320734627,1711539132428,-563.96,0.00058904,120]
[320734628,1711539132437,-500.0,0.00058904,120]
[320734629,1711539132447,-500.0,0.00058904,120]
[320734630,1711539132456,-500.0,0.00058904,120]
[320734631,1711539132466,-500.0,0.00058904,120]
[320734632,1711539132476,-976.2,0.00058904,120]
[320734633,1711539132487,-500.0,0.00058904,120]
[320734634,1711539132496,-531.34,0.00058904,120]
[320734635,1711539132505,-500.0,0.00058904,120]
[320734636,1711539132515,-575.24,0.00058904,120]
[320734637,1711539132525,-503.38,0.00058904,120]
[320734638,1711539132535,-500.0,0.00058904,120]
[320734639,1711539132545,-544.36,0.00058904,120]
[320734640,1711539132555,-656.62,0.00058904,120]
[320734641,1711539132564,-786.05,0.00058904,120]
[320734642,1711539132574,-1108.32,0.00058904,120]
[320734643,1711539132584,-500.0,0.00058904,120]
[320734644,1711539132593,-582.28,0.00058904,120]
[320734645,1711539132604,-500.0,0.00058904,120]
[320734646,1711539132613,-500.0,0.00058904,120]
[320734647,1711539132623,-500.0,0.00058904,120]
[320734648,1711539132632,-500.0,0.00058904,120]
[320734649,1711539132641,-500.0,0.00058904,120]
[320734650,1711539132651,-500.0,0.00058904,120]
[320734651,1711539132660,-650.65,0.00058904,120]
[320734652,1711539132669,-666.49,0.00058904,120]
[320734653,1711539132678,-512.61,0.00058904,120]
[320734654,1711539132688,-500.0,0.00058904,120]
[320734655,1711539132697,-500.0,0.00058904,120]
[320734656,1711539132707,-610.66,0.00058904,120]
[320734657,1711539132716,-544.48,0.00058904,120]
[320734658,1711539132725,-500.0,0.00058904,120]
[320734659,1711539132736,-1264.52,0.00058904,120]
[320734660,1711539132746,-564.14,0.00058904,120]
[320734661,1711539132756,-617.82,0.00058904,120]
[320734662,1711539132765,-832.09,0.00058904,120]
[320734663,1711539132774,-921.37,0.00058904,120]
[320734664,1711539132784,-695.47,0.00058904,120]
[320734665,1711539132793,-1458.74,0.00058904,120]
[320734666,1711539132802,-1146.87,0.00058904,120]
[320734667,1711539132813,-597.38,0.00058904,120]
[320734668,1711539132824,-2719.96,0.00058904,120]
[320734669,1711539132833,-500.0,0.00058904,120]
[320734670,1711539132843,-1170.95,0.00058904,120]
[320734671,1711539132853,-1986.6,0.00058904,120]
[320734672,1711539132862,-884.38,0.00058904,120]
[320734673,1711539132871,-1057.95,0.00058904,120]
[320734674,1711539132880,-616.91,0.00058904,120]
[320734675,1711539132890,-533.04,0.00058904,120]
[320734676,1711539132899,-702.45,0.00058904,120]
[320734677,1711539132908,-537.22,0.00058904,120]
[320734678,1711539132918,-5471.51,0.00058904,120]
[320734679,1711539132927,-587.11,0.00058904,120]
[320734680,1711539132936,-500.0,0.00058904,120]
[320734681,1711539132946,-2128.3,0.00058904,120]
[320734682,1711539132955,-500.0,0.00058904,120]
[320734683,1711539132965,-500.0,0.00058904,120]
[320734684,1711539132974,-961.96,0.00058904,120]
[320734685,1711539132983,-792.02,0.00058904,120]
[320734686,1711539132995,-613.31,0.00058904,120]
[320734687,1711539133005,-1258.8,0.00058904,120]
[320734688,1711539133014,-931.2,0.00058904,120]
[320734689,1711539133024,-663.5,0.00058904,120]
[320734690,1711539133033,-500.0,0.00058904,120]
[320734691,1711539133042,-1126.29,0.00058904,120]
[320734692,1711539133051,-905.93,0.00058904,120]
[320734693,1711539133061,-596.37,0.00058904,120]
[320734694,1711539133070,-1145.15,0.00058904,120]
[320734695,1711539133079,-1047.43,0.00058904,120]
[320734696,1711539133088,-1079.19,0.00058904,120]
[320734697,1711539133098,-500.0,0.00058904,120]
[320734698,1711539133107,-500.0,0.00058904,120]
[320734699,1711539133117,-1050.1,0.00058904,120]
[320734700,1711539133127,-668.88,0.00058904,120]
[320734701,1711539133137,-798.22,0.00058904,120]
[320734702,1711539133147,-865.88,0.00058904,120]
[320734703,1711539133156,-500.0,0.00058904,120]
[320734704,1711539133166,-540.85,0.00058904,120]
[320734705,1711539133176,-698.77,0.00058904,120]
[320734706,1711539133185,-805.48,0.00058904,120]
[320734707,1711539133195,-895.29,0.00058904,120]
[320734708,1711539133205,-2904.63,0.00058904,120]
[320734709,1711539133214,-575.0,0.00058904,120]
[320734710,1711539133224,-1059.6,0.00058904,120]
[320734711,1711539133234,-566.16,0.00058904,120]
[320734712,1711539133244,-624.76,0.00058904,120]
[320734713,1711539133254,-596.27,0.00058904,120]
[320734714,1711539133268,-511.44,0.00058904,120]
[320734715,1711539133278,-670.39,0.00058904,120]
[320734716,1711539133288,-2461.83,0.00058904,120]
[320734717,1711539133299,-500.0,0.00058904,120]
[320734718,1711539133308,-1096.84,0.00058904,120]
[320734719,1711539133318,-730.57,0.00058904,120]
[320734720,1711539133327,-526.24,0.00058904,120]
[320734721,1711539133336,-813.47,0.00058904,120]
[320734722,1711539133346,-500.0,0.00058904,120]
[320734723,1711539133356,-982.22,0.00058904,120]
[320734724,1711539133365,-2323.15,0.00058904,120]
[320734725,1711539133376,-952.22,0.00058904,120]
[320734726,1711539133385,-1090.65,0.00058904,120]
[320734727,1711539133394,-2118.58,0.00058904,120]
[320734728,1711539133404,-819.74,0.00058904,120]
[320734729,1711539133413,-500.0,0.00058904,120]
[320734730,1711539133423,-500.0,0.00058904,120]
[320734731,1711539133432,-1006.99,0.00058904,120]
[320734732,1711539133441,-680.58,0.00058904,120]
[320734733,1711539133451,-500.0,0.00058904,120]
[320734734,1711539133461,-2012.56,0.00058904,120]
[320734735,1711539133471,-525.09,0.00058904,120]
[320734736,1711539133480,-1027.05,0.00058904,120]
[320734737,1711539133492,-775.63,0.00058904,120]
[320734738,1711539133501,-909.15,0.00058904,120]
[320734739,1711539133510,-669.48,0.00058904,120]
[320734740,1711539133520,-2014.61,0.00058904,120]
[320734741,1711539133530,-613.39,0.00058904,30]
[320734742,1711539133540,-670.15,0.00058904,120]
[320734743,1711539133549,-613.0,0.00058904,120]
[320734744,1711539133559,-500.0,0.00058904,120]
[320734745,1711539133568,-741.01,0.00058904,120]
[320734746,1711539133578,-715.82,0.00058904,120]
[320734747,1711539133588,-693.91,0.00058904,120]
[320734748,1711539133597,-1436.63,0.00058904,120]
[320734749,1711539133607,-788.63,0.00058904,120]
[320734750,1711539133617,-852.33,0.00058904,120]
[320734751,1711539133628,-500.0,0.00058904,120]
[320734752,1711539133639,-608.04,0.00058904,120]
[320734753,1711539133650,-500.0,0.00058904,120]
[320734754,1711539133660,-632.68,0.00058904,120]
[320734755,1711539133669,-500.0,0.00058904,120]
[320734756,1711539133678,-524.62,0.00058904,120]
[320734757,1711539133690,-620.43,0.00058904,120]
[320734758,1711539133700,-818.9,0.00058904,120]
[320734759,1711539133711,-2063.63,0.00058904,120]
[320734760,1711539133720,-1004.28,0.00058904,120]
[320734761,1711539133730,-2011.71,0.00058904,120]
[320734762,1711539133741,-807.51,0.00058904,120]
[320734763,1711539133752,-500.0,0.00058904,120]
[320734764,1711539133761,-755.18,0.00058904,120]
[320734765,1711539133771,-763.33,0.00058904,120]
[320734766,1711539133781,-487.81,0.00058904,120]
[320734767,1711539133791,-842.7,0.00058904,120]
[320734768,1711539133802,-713.05,0.00058904,120]
[320734769,1711539133812,-2308.15,0.00058904,120]
[320734770,1711539133822,-500.0,0.00058904,120]
[320734771,1711539133831,-369.12168456,0.00058904,120]
[320734772,1711539133842,-676.12,0.00058904,120]
[320734773,1711539133851,-849.59,0.00058904,120]
[320734774,1711539133861,-677.22,0.00058904,120]
[320734775,1711539133870,-333.84,0.00058904,120]
[320734776,1711539133879,-800.48,0.00058904,120]
[320734777,1711539133889,-988.02,0.00058904,120]
[320734778,1711539133898,-535.04,0.00058904,120]
[320734779,1711539133908,-930.48,0.00058904,120]
[320734780,1711539133917,-877.53,0.00058904,120]
[320734781,1711539133927,-2082.72,0.00058904,120]
[320734782,1711539133937,-520.53,0.00058904,120]
[320734783,1711539133947,-1016.45,0.00058904,120]
[320734784,1711539133958,-525.83,0.00058904,120]
[320734785,1711539133967,-500.0,0.00058904,120]
[320734786,1711539133976,-1436.62,0.00058904,120]
[320734787,1711539133986,-2558.6,0.00058904,120]
[320734788,1711539133995,-2044.63,0.00058904,120]
[320734789,1711539134005,-545.88,0.00058904,120]
[320734790,1711539134014,-783.0,0.00058904,120]
[320734791,1711539134024,-3085.25,0.00058904,120]
[320734792,1711539134033,-839.83,0.00058904,120]
[320734793,1711539134043,-735.26,0.00058904,120]
[320734794,1711539134052,-3173.89,0.00058904,120]
[320734795,1711539134062,-1365.01,0.00058904,120]
[320734796,1711539134071,-500.0,0.00058904,120]
[320734797,1711539134081,-1347.96,0.00058904,120]
[320734798,1711539134090,-5132.44,0.00058904,120]
[320734799,1711539134100,-558.52,0.00058904,120]
[320734800,1711539134109,-7133.78,0.00058904,120]
[320734801,1711539134119,-579.76,0.00058904,120]
[320734802,1711539134129,-1944.43,0.00058904,120]
[320734803,1711539134137,-500.0,0.00058904,120]
[320734804,1711539134146,-6097.44,0.00058904,120]
[320734805,1711539134156,-5109.09,0.00058904,120]
[320734806,1711539134165,-545.62,0.00058904,120]
[320734807,1711539134174,-663.4,0.00058904,120]
[320734808,1711539134183,-22670.34,0.00058904,120]
[320734809,1711539134192,-2453.89,0.00058904,120]
[320734810,1711539134201,-2612.82,0.00058904,120]
[320734811,1711539134211,-7956.37,0.00058904,120]
[320734812,1711539134220,-1096.81,0.00058904,120]
[320734813,1711539134230,-2520.37,0.00058904,120]
[320734814,1711539134240,-628.48,0.00058904,120]
[320734815,1711539134250,-1032.54,0.00058904,120]
[320734816,1711539134262,-500.0,0.00058904,120]
[320734817,1711539134272,-2884.81,0.00058904,120]
[320734818,1711539134282,-3753.0,0.00058904,120]
[320734819,1711539134291,-5025.57,0.00058904,120]
[320734820,1711539134301,-43977.12,0.00058904,120]
[320734821,1711539134311,-9397.34,0.00058904,120]
[320734822,1711539134321,-7954.08,0.00058904,120]
[320734823,1711539134330,-500.0,0.00058904,120]
[320734824,1711539134340,-832.53,0.00058904,120]
[320734825,1711539134351,-5423.8,0.00058904,120]
[320734826,1711539134360,-5589.81,0.00058904,120]
[320734827,1711539134370,-3477.52,0.00058904,120]
[320734828,1711539134379,-500.0,0.00058904,120]
[320734829,1711539134388,-3295.4,0.00058904,120]
[320734830,1711539134397,-500.0,0.00058904,120]
[320734831,1711539134407,-79143.13,0.00058904,120]
[320734832,1711539134417,-4233.1,0.00058904,120]
[320734833,1711539134427,-1554.43,0.00058904,120]
[320734834,1711539134437,-21230.92,0.00058904,120]
[320734835,1711539134446,-1796.45,0.00058904,120]
[320734836,1711539134456,-1488.59,0.00058904,120]
[320734837,1711539134466,-1590.82,0.00058904,120]
[320734838,1711539134476,-4270.02,0.00058904,120]
[320734839,1711539134486,-1416.51,0.00058904,120]
[320734840,1711539134497,-1436.29,0.00058904,120]
[320734841,1711539134507,-2733.23,0.00058904,120]
[320734842,1711539134517,-4828.26,0.00058904,120]
[320734843,1711539134526,-2699.02,0.00058904,120]
[320734844,1711539134537,-794.6,0.00058904,120]
[320734845,1711539134547,-4103.23,0.00058904,120]
[320734846,1711539134556,-2649.26,0.00058904,120]
[320734847,1711539134566,-265.78138218,0.00058904,120]
[320734848,1711539134576,-3406.52,0.00058904,120]
[320734849,1711539134586,-1067.47,0.00058904,120]
[320734850,1711539134596,-500.0,0.00058904,120]
[320734851,1711539134605,-1008.05,0.00058904,120]
[320734852,1711539134616,-532.43,0.00058904,120]
[320734853,1711539134627,-3326.63,0.00058904,120]
[320734854,1711539134637,-949.03,0.00058904,120]
[320734855,1711539134647,-13832.31,0.00058904,120]
[320734856,1711539134657,-5725.46,0.00058904,120]
[320734857,1711539134667,-500.0,0.00058904,120]
[320734858,1711539134676,-1080.08,0.00058904,120]
[320734859,1711539134685,-638.55,0.00058904,120]
[320734860,1711539134694,-532.1,0.00058904,120]
[320734861,1711539134704,-3178.59,0.00058904,120]
[320734862,1711539134714,-1914.32,0.00058904,120]
[320734863,1711539134724,-868.21,0.00058904,120]
[320734864,1711539134733,-5718.22,0.00058904,120]
[320734865,1711539134746,-1510.54,0.00058904,120]
[320734866,1711539134756,-6090.95,0.00058904,120]
[320734867,1711539134766,-2368.29,0.00058904,120]
[320734868,1711539134775,-1975.68,0.00058904,120]
[320734869,1711539134784,-2626.24,0.00058904,120]
[320734870,1711539134794,-826.27,0.00058904,120]
[320734871,1711539134804,-5971.8,0.00058904,120]
[320734872,1711539134814,-6306.66,0.00058904,120]
[320734873,1711539134823,-3796.34,0.00058904,120]
[320734874,1711539134833,-3897.67,0.00058904,120]
[320734875,1711539134843,-2196.71,0.00058904,120]
[320734876,1711539134853,-1053.73,0.00058904,120]
[320734877,1711539134864,-500.0,0.00058904,7]
[320734878,1711539134873,-2509.66,0.00058904,120]
[320734879,1711539134883,-500.0,0.00058904,120]
[320734880,1711539134892,-2090.88,0.00058904,120]
[320734881,1711539134903,-3728.83,0.00058904,120]
[320734882,1711539134913,-14051.88,0.00058904,120]
[320734883,1711539134922,-5336.71,0.00058904,120]
[320734884,1711539134933,-6046.1,0.00058904,120]
[320734885,1711539134944,-1400.16,0.00058904,120]
[320734886,1711539134954,-6749.09,0.00058904,120]
[320734887,1711539134964,-1020.49,0.00058904,120]
[320734888,1711539134973,-3525.02,0.00058904,120]
[320734889,1711539134984,-9670.8,0.00058904,120]
[320734890,1711539134994,-2244.9,0.00058904,120]
[320734891,1711539135003,-4278.93,0.00058904,120]
[320734892,1711539135013,-500.0,0.00058904,120]
[320734893,1711539135022,-5002.55,0.00058904,120]
[320734894,1711539135031,-1319.68,0.00058904,120]
[320734895,1711539135040,-5599.22,0.00058904,120]
[320734896,1711539135050,-4145.52,0.00058904,120]
[320734897,1711539135059,-1033.96,0.00058904,120]
[320734898,1711539135069,-8690.1,0.00058904,120]
[320734899,1711539135078,-759.99,0.00058904,120]
[320734900,1711539135087,-938.28,0.00058904,120]
[320734901,1711539135097,-3689.75,0.00058904,120]
[320734902,1711539135107,-3289.32,0.00058904,120]
[320734903,1711539135117,-773.1,0.00058904,120]
[320734904,1711539135127,-8474.88,0.00058904,120]
[320734905,1711539135137,-670.41,0.00058904,120]
[320734906,1711539135146,-684.84,0.00058904,120]
[320734907,1711539135156,-991.15,0.00058904,120]
[320734908,1711539135165,-16950.66,0.00058904,120]
[320734909,1711539135174,-5480.38,0.00058904,120]
[320734910,1711539135183,-3421.26,0.00058904,120]
[320734911,1711539135193,-649.49,0.00058904,120]
[320734912,1711539135202,-1159.66,0.00058904,120]
[320734913,1711539135211,-2172.19,0.00058904,120]
[320734914,1711539135221,-2895.84,0.00058904,120]
[320734915,1711539135231,-20784.38,0.00058904,120]
[320734916,1711539135242,-2732.75,0.00058904,120]
[320734917,1711539135252,-17160.48,0.00058904,120]
[320734918,1711539135266,-4740.83,0.00058904,120]
[320734919,1711539135275,-886.33,0.00058904,120]
[320734920,1711539135285,-672.63,0.00058904,120]
[320734921,1711539135295,-6247.3,0.00058904,120]
[320734922,1711539135306,-5091.09,0.00058904,21]
[320734923,1711539135315,-500.0,0.00058904,120]
[320734924,1711539135325,-584.47,0.00058904,120]
[320734925,1711539135335,-8381.34,0.00058904,120]
[320734926,1711539135346,-2273.07,0.00058904,120]
[320734927,1711539135356,-4086.57,0.00058904,120]
[320734928,1711539135366,-2370.47,0.00058904,120]
[320734929,1711539135375,-19292.32,0.00058904,120]
[320734930,1711539135385,-2960.24,0.00058904,120]
[320734931,1711539135395,-1173.99,0.00058904,120]
[320734932,1711539135405,-500.0,0.00058904,85]
[320734933,1711539135415,-2202.57,0.00058904,120]
[320734934,1711539135424,-12410.62,0.00058904,120]
[320734935,1711539135433,-3278.85,0.00058904,120]
[320734936,1711539135443,-8798.58,0.00058904,120]
[320734937,1711539135452,-876.94,0.00058904,120]
[320734938,1711539135462,-3583.19,0.00058904,120]
[320734939,1711539135472,-895.2,0.00058904,120]
[320734940,1711539135481,-1845.88,0.00058904,120]
[320734941,1711539135492,-937.27,0.00058904,120]
[320734942,1711539135502,-1083.78,0.00058904,120]
[320734943,1711539135512,-3201.11,0.00058904,120]
[320734944,1711539135521,-2638.24,0.00058904,120]
[320734945,1711539135532,-1388.52,0.00058904,120]
[320734946,1711539135541,-4892.27,0.00058904,120]
[320734947,1711539135551,-2480.34,0.00058904,120]
[320734948,1711539135561,-1350.19,0.00058904,120]
[320734949,1711539135571,-3142.36,0.00058904,120]
[320734950,1711539135581,-2180.01,0.00058904,120]
[320734951,1711539135592,-1470.53,0.00058904,120]
[320734952,1711539135603,-500.0,0.00058904,120]
[320734953,1711539135612,-505.71,0.00058904,120]
[320734954,1711539135622,-1659.22,0.00058904,120]
[320734955,1711539135633,-8083.93,0.00058904,120]
[320734956,1711539135643,-2931.63,0.00058904,120]
[320734957,1711539135652,-2901.36,0.00058904,120]
[320734958,1711539135662,-4166.77,0.00058904,120]
[320734959,1711539135671,-541.86,0.00058904,120]
[320734960,1711539135681,-3516.57,0.00058904,120]
[320734961,1711539135692,-10990.32,0.00058904,120]
[320734962,1711539135703,-1139.26,0.00058904,120]
[320734963,1711539135712,-686.73,0.00058904,120]
[320734964,1711539135722,-1716.32,0.00058904,120]
[320734965,1711539135923,-500.0,0.00058904,120]
[320734966,1711539135934,-224.0,0.00058926,30]
[320734967,1711539135943,-9100.250636,0.00058946,30]
[320734968,1711539135953,-14879.248352,0.00058946,30]
[320734969,1711539135964,-538.55,0.00058985,6]
[320734970,1711539135974,-282021.42144569,0.00059,120]
[320734971,1711539135983,-10619.58241321,0.00059,5]
[320734972,1711539135995,-300.0,0.00059,60]
[320734973,1711539136005,-250.0,0.00059,120]
[320734974,1711539136014,-5000.0,0.00059,120]
[320734975,1711539136024,-1000.0,0.00059,120]
[320734976,1711539136034,-25000.0,0.00059,120]
[320734977,1711539136043,-1000.0,0.00059,120]
[320734978,1711539136052,-500.0,0.00059065,120]
[320734979,1711539136062,-156.14444312,0.00059122,120]
[320734980,1711539136072,-251.41097012,0.00059128,90]
[320734981,1711539136081,-500.0,0.00059128,90]
[320734982,1711539136093,-636.50981946,0.00059176,120]
[320734983,1711539136104,-895.23,0.00059178,120]
[320734984,1711539136113,-575.28,0.00059178,120]
[320734985,1711539136123,-500.0,0.00059178,120]
[320734986,1711539136133,-500.0,0.00059178,120]
[320734987,1711539136142,-563.96,0.00059178,120]
[320734988,1711539136151,-245.82290151,0.00059178,120]
[320734989,1711539136160,-500.0,0.00059178,120]
[320734990,1711539136169,-500.0,0.00059178,120]
[320734991,1711539136178,-500.0,0.00059178,120]
[320734992,1711539136187,-976.2,0.00059178,120]
[320734993,1711539136197,-500.0,0.00059178,120]
[320734994,1711539136206,-531.34,0.00059178,120]
[320734995,1711539136215,-500.0,0.00059178,120]
[320734996,1711539136225,-575.24,0.00059178,120]
[320734997,1711539136235,-503.38,0.00059178,120]
[320734998,1711539136247,-500.0,0.00059178,120]
[320734999,1711539136257,-544.36,0.00059178,120]
[320735000,1711539136267,-656.62,0.00059178,120]
[320735001,1711539136279,-786.05,0.00059178,120]
[320735002,1711539136288,-1108.32,0.00059178,120]
[320735003,1711539136298,-500.0,0.00059178,120]
[320735004,1711539136308,-582.28,0.00059178,120]
[320735005,1711539136319,-500.0,0.00059178,120]
[320735006,1711539136328,-500.0,0.00059178,120]
[320735007,1711539136338,-500.0,0.00059178,120]
[320735008,1711539136350,-500.0,0.00059178,120]
[320735009,1711539136360,-500.0,0.00059178,120]
[320735010,1711539136370,-500.0,0.00059178,120]
[320735011,1711539136379,-650.65,0.00059178,120]
[320735012,1711539136389,-666.49,0.00059178,120]
[320735013,1711539136399,-512.61,0.00059178,120]
[320735014,1711539136409,-500.0,0.00059178,120]
[320735015,1711539136418,-500.0,0.00059178,120]
[320735016,1711539136428,-610.66,0.00059178,120]
[320735017,1711539136437,-544.48,0.00059178,120]
[320735018,1711539136447,-500.0,0.00059178,120]
[320735019,1711539136457,-1264.52,0.00059178,120]
[320735020,1711539136466,-564.14,0.00059178,120]
[320735021,1711539136476,-617.82,0.00059178,120]
[320735022,1711539136486,-832.09,0.00059178,120]
[320735023,1711539136496,-921.37,0.00059178,120]
[320735024,1711539136506,-695.47,0.00059178,120]
[320735025,1711539136515,-1458.74,0.00059178,120]
[320735026,1711539136524,-597.38,0.00059178,120]
[320735027,1711539136534,-1146.87,0.00059178,120]
[320735028,1711539136543,-2719.96,0.00059178,120]
[320735029,1711539136553,-500.0,0.00059178,120]
[320735030,1711539136562,-1170.95,0.00059178,120]
[320735031,1711539136571,-1986.6,0.00059178,120]
[320735032,1711539136581,-884.38,0.00059178,120]
[320735033,1711539136591,-1057.95,0.00059178,120]
[320735034,1711539136600,-616.91,0.00059178,120]
[320735035,1711539136610,-533.04,0.00059178,120]
[320735036,1711539136619,-702.45,0.00059178,120]
[320735037,1711539136628,-537.22,0.00059178,120]
[320735038,1711539136638,-5471.51,0.00059178,120]
[320735039,1711539136647,-587.11,0.00059178,120]
[320735040,1711539136657,-500.0,0.00059178,120]
[320735041,1711539136666,-2128.3,0.00059178,120]
[320735042,1711539136675,-500.0,0.00059178,120]
[320735043,1711539136684,-500.0,0.00059178,120]
[320735044,1711539136693,-961.96,0.00059178,120]
[320735045,1711539136701,-792.02,0.00059178,120]
[320735046,1711539136711,-613.31,0.00059178,120]
[320735047,1711539136720,-1258.8,0.00059178,120]
[320735048,1711539136730,-931.2,0.00059178,120]
[320735049,1711539136738,-663.5,0.00059178,120]
[320735050,1711539136748,-500.0,0.00059178,120]
[320735051,1711539136758,-1126.29,0.00059178,120]
[320735052,1711539136767,-905.93,0.00059178,120]
[320735053,1711539136776,-596.37,0.00059178,120]
[320735054,1711539136786,-1145.15,0.00059178,120]
[320735055,1711539136795,-1047.43,0.00059178,120]
[320735056,1711539136804,-1079.19,0.00059178,120]
[320735057,1711539136814,-500.0,0.00059178,120]
[320735058,1711539136823,-500.0,0.00059178,120]
[320735059,1711539136832,-1050.1,0.00059178,120]
[320735060,1711539136842,-668.88,0.00059178,120]
[320735061,1711539136851,-798.22,0.00059178,120]
[320735062,1711539136861,-865.88,0.00059178,120]
[320735063,1711539136871,-500.0,0.00059178,120]
[320735064,1711539136880,-698.77,0.00059178,120]
[320735065,1711539136889,-805.48,0.00059178,120]
[320735066,1711539136898,-895.29,0.00059178,120]
[320735067,1711539136907,-2904.63,0.00059178,120]
[320735068,1711539136916,-575.0,0.00059178,120]
[320735069,1711539136926,-1059.6,0.00059178,120]
[320735070,1711539136935,-566.16,0.00059178,120]
[320735071,1711539136944,-624.76,0.00059178,120]
[320735072,1711539136953,-596.27,0.00059178,120]
[320735073,1711539136963,-511.44,0.00059178,120]
[320735074,1711539136972,-670.39,0.00059178,120]
[320735075,1711539136982,-2461.83,0.00059178,120]
[320735076,1711539136992,-500.0,0.00059178,120]
[320735077,1711539137001,-1096.84,0.00059178,120]
[320735078,1711539137012,-730.57,0.00059178,120]
[320735079,1711539137022,-526.24,0.00059178,120]
[320735080,1711539137032,-813.47,0.00059178,120]
[320735081,1711539137041,-500.0,0.00059178,120]
[320735082,1711539137051,-982.22,0.00059178,120]
[320735083,1711539137060,-2323.15,0.00059178,120]
[320735084,1711539137071,-952.22,0.00059178,120]
[320735085,1711539137080,-1090.65,0.00059178,120]
[320735086,1711539137091,-2118.58,0.00059178,120]